[Event "RUS-ch Men Rapid 2019"]
[Site "Sochi"]
[Date "2019.10.15"]
[Round "2.30"]
[White "Smagin, Sergey"]
[Black "Gaydym, Michail"]
[Result "1-0"]
[ECO "C25"]
[WhiteElo "2551"]
[BlackElo "2337"]
[Annotator "ChessBase"]
[PlyCount "107"]
[EventDate "2019.10.15"]
[EventType "swiss"]
[EventCountry "RUS"]
[SourceTitle "playchess.com"]
[Source "ChessBase"]
[SourceQuality "1"]
[TimeControl "900+10"]

1. e4 {[%emt 0:00:00]} e5 {[%emt 0:00:00]} 2. Nc3 {[%emt 0:00:00]} Bc5 {[%emt 0:00:04]} 3. g3 {[%emt 0:00:12]} d6 {[%emt 0:00:24]} 4. Bg2 {[%emt 0:00:02]} a6 {[%emt 0:00:49]} 5. Nge2 {[%emt 0:00:23]} Nc6 {[%emt 0:00:15]} 6. d3 {[%emt 0:00:21]} f5 {[%emt 0:00:33]} 7. exf5 {[%emt 0:04:18]} Nf6 {[%emt 0:00:49]} 8. Ne4 {[%emt 0:01:42]} Bb6 {[%emt 0:02:11]} 9. O-O {[%emt 0:01:00]} Bxf5 {[%emt 0:00:38]} 10. N2c3 {[%emt 0:00:07]} O-O {[%emt 0:03:19]} 11. Bg5 {[%emt 0:01:02]} Be6 {[%emt 0:01:57]} 12. Nd5 {[%emt 0:01:33]} Ba7 {[%emt 0:01:54]} 13. Nexf6+ {[%emt 0:02:22]} gxf6 {[%emt 0:00:04]} 14. Be3 {[%emt 0:00:02]} Ne7 {[%emt 0:00:45]} 15. Nxe7+ {[%emt 0:00:52]} Qxe7 {[%emt 0:00:01]} 16. Bxa7 {[%emt 0:00:01]} Rxa7 {[%emt 0:00:01]} 17. d4 {[%emt 0:00:23]} Qd7 {[%emt 0:01:16]} 18. f4 {[%emt 0:00:24]} Qb5 {[%emt 0:00:59]} 19. fxe5 {[%emt 0:00:30]} dxe5 {[%emt 0:00:05]} 20. dxe5 {[%emt 0:00:03]} Qxe5 {[%emt 0:00:39]} 21. Re1 {[%emt 0:00:37]} Qc5+ {[%emt 0:00:06]} 22. Kh1 {[%emt 0:00:01]} Bf5 {[%emt 0:00:56]} 23. b4 {[%emt 0:01:25]} Qxc2 {[%emt 0:00:27]} 24. Qd5+ {[%emt 0:00:36]} Kh8 {[%emt 0:00:01]} 25. Rac1 {[%emt 0:00:10]} Qd3 {[%emt 0:00:04]} 26. Rxc7 {[%emt 0:00:26]} Qxd5 {[%emt 0:00:04]} 27. Bxd5 {[%emt 0:00:00]} Rd8 {[%emt 0:00:27]} 28. Kg1 {[%emt 0:00:10]} Bg6 {[%emt 0:00:05]} 29. Bxb7 {[%emt 0:00:05]} Rb8 {[%emt 0:00:34]} 30. Ree7 {[%emt 0:00:01]} Rd8 {[%emt 0:00:11]} 31. a3 {[%emt 0:00:10]} a5 {[%emt 0:00:01]} 32. b5 {[%emt 0:00:01]} a4 {[%emt 0:00:01]} 33. b6 {[%emt 0:00:08]} Ra5 {[%emt 0:00:01]} 34. Rc8 {[%emt 0:00:24]} Rxc8 {[%emt 0:00:27]} 35. Bxc8 {[%emt 0:00:00]} Rb5 {[%emt 0:00:00]} 36. b7 {[%emt 0:00:02]} Rb2 {[%emt 0:00:39]} 37. Bf5 {[%emt 0:00:15]} Bxf5 {[%emt 0:00:10]} 38. Re8+ {[%emt 0:00:01]} Kg7 {[%emt 0:00:01]} 39. b8=Q {[%emt 0:00:01]} Rxb8 {[%emt 0:00:02]} 40. Rxb8 {[%emt 0:00:01]} Bc2 {[%emt 0:00:01]} 41. Kf2 {[%emt 0:00:03]} h6 {[%emt 0:00:06]} 42. Ke3 {[%emt 0:00:01]} Kg6 {[%emt 0:00:03]} 43. Kf4 {[%emt 0:00:05]} Bd1 {[%emt 0:00:06]} 44. Ra8 {[%emt 0:00:06]} Bc2 {[%emt 0:00:03]} 45. Ra6 {[%emt 0:00:02]} Bd1 {[%emt 0:00:04]} 46. g4 {[%emt 0:00:04]} Bc2 {[%emt 0:00:24]} 47. h4 {[%emt 0:00:02]} Kg7 {[%emt 0:00:07]} 48. Ra7+ {[%emt 0:00:02]} Kg8 {[%emt 0:00:04]} 49. Ke3 {[%emt 0:00:13]} Bd1 {[%emt 0:00:06]} 50. Kf4 {[%emt 0:00:13]} Bc2 {[%emt 0:00:02]} 51. Rc7 {[%emt 0:00:00]} Bd3 {[%emt 0:00:21]} 52. Rc3 {[%emt 0:00:05]} Bg6 {[%emt 0:00:11]} 53. Rc4 {[%emt 0:00:03]} Be8 {[%emt 0:00:03]} 54. Kf5 {[%emt 0:00:18]} 1-0

[Event "RUS-ch Men Rapid 2019"]
[Site "Sochi"]
[Date "2019.10.15"]
[Round "2.31"]
[White "Stambulian, Arsen"]
[Black "Nazaretyan, Tigran"]
[Result "0-1"]
[ECO "B67"]
[WhiteElo "2306"]
[BlackElo "2297"]
[Annotator "NA"]
[PlyCount "68"]
[EventDate "2019.10.15"]
[EventType "swiss"]
[EventCountry "RUS"]
[SourceTitle "playchess.com"]
[Source "ChessBase"]
[SourceQuality "1"]
[TimeControl "900+10"]

1. e4 {[%emt 0:00:00]} c5 {[%emt 0:00:00]} 2. Nf3 {[%emt 0:00:00]} Nc6 {[%emt 0:00:00]} 3. d4 {[%emt 0:00:00]} cxd4 {[%emt 0:00:02]} 4. Nxd4 {[%emt 0:00:00]} Nf6 {[%emt 0:00:01]} 5. Nc3 {[%emt 0:00:00]} d6 {[%emt 0:00:01]} 6. Bg5 {[%emt 0:00:01]} e6 {[%emt 0:00:01]} 7. Qd2 {[%emt 0:00:02]} a6 {[%emt 0:00:01]} 8. O-O-O {[%emt 0:00:05]} Bd7 {[%emt 0:00:01]} 9. f4 {[%emt 0:00:10]} h6 {[%emt 0:00:02]} 10. Bxf6 {[%emt 0:00:27]} Qxf6 {[%emt 0:00:03]} 11. Nf3 {[%emt 0:00:21]} Qd8 {[%emt 0:00:52]} 12. Kb1 {[%emt 0:00:18]} Qc7 {[%emt 0:00:22]} 13. f5 {[%emt 0:00:27]} Be7 {[%emt 0:00:59]} 14. g4 {[%emt 0:03:43]} O-O-O {[%emt 0:00:38]} 15. Rg1 {[%emt 0:00:31]} Kb8 {[%emt 0:00:40]} 16. g5 {[%emt 0:00:43]} hxg5 {[%emt 0:00:12]} 17. Nxg5 {[%emt 0:00:02]} Ne5 {[%emt 0:00:27]} 18. Qf2 {[%emt 0:00:48]} Qc5 {[%emt 0:02:04]} 19. Qxc5 {[%emt 0:05:21]} dxc5 {[%emt 0:00:05]} 20. fxe6 {[%emt 0:00:09]} fxe6 {[%emt 0:00:34]} 21. Be2 {[%emt 0:01:08]} Rxh2 {[%emt 0:00:54]} 22. Nf3 {[%emt 0:00:23]} Nxf3 {[%emt 0:00:34]} 23. Bxf3 {[%emt 0:00:02]} Bf6 {[%emt 0:01:41]} 24. e5 {[%emt 0:02:41]} Bxe5 {[%emt 0:00:12]} 25. Ne4 {[%emt 0:00:02]} b6 {[%emt 0:01:06]} 26. Ng5 {[%emt 0:00:41]} Bd4 {[%emt 0:00:47]} 27. Rgf1 {[%emt 0:00:54]} Kc7 {[%emt 0:00:40]} 28. c3 {[%emt 0:00:15]} Bf6 {[%emt 0:00:52]} 29. Ne4 {[%emt 0:00:01]} Bb5 {[%emt 0:00:29]} 30. Rxd8 {[%emt 0:00:19]} Bxf1 {[%emt 0:00:24]} 31. Rf8 {[%emt 0:00:09]} Bd3+ {[%emt 0:00:07]} 32. Kc1 {[%emt 0:00:18]} Rc2+ {[%emt 0:00:39]} 33. Kd1 {[%emt 0:00:01]} Bxe4 {[%emt 0:00:15]} 34. Bxe4 {[%emt 0:00:02]} Rxb2 {[%emt 0:00:03]} 0-1

[Event "RUS-ch Men Rapid 2019"]
[Site "Sochi"]
[Date "2019.10.15"]
[Round "2.32"]
[White "Glek, Igor"]
[Black "Orlinkov, Maxim L."]
[Result "1-0"]
[ECO "B01"]
[WhiteElo "2467"]
[BlackElo "2297"]
[Annotator "ChessBase"]
[PlyCount "99"]
[EventDate "2019.10.15"]
[EventType "swiss"]
[EventCountry "RUS"]
[SourceTitle "playchess.com"]
[Source "ChessBase"]
[SourceQuality "1"]
[TimeControl "900+10"]

1. e4 d5 2. exd5 Nf6 3. Nf3 Nxd5 4. d4 Bg4 5. Be2 e6 6. Ne5 Bxe2 7. Qxe2 Nd7 8. O-O Nxe5 9. dxe5 c6 10. Nd2 Qc7 11. Nf3 O-O-O 12. Rd1 h6 13. c4 Ne7 14. Rxd8+ Qxd8 15. Be3 Qa5 16. Bd2 Qc7 17. b4 g5 18. Qe4 Bg7 19. Bc3 Ng6 20. g3 Rd8 21. Re1 Qd7 22. Bd4 b6 23. b5 Kc7 24. a4 c5 25. Be3 Kb8 26. h4 gxh4 27. Nxh4 Qd3 28. Qg4 Rd7 29. Nxg6 Qxg6 30. Qxg6 fxg6 31. f4 Rd3 32. a5 Rc3 33. Kf2 Rxc4 34. Rd1 Kc7 35. Rd6 bxa5 36. Rxe6 a4 37. Rxg6 a3 38. Ra6 Rc2+ 39. Kf3 a2 40. Ke4 Kb7 41. Kd5 Rb2 42. Bxc5 Rd2+ 43. Ke6 Rc2 44. Bd4 Bf8 45. Rxa7+ Kb8 46. Ra4 h5 47. Kf7 Rd2 48. Kxf8 Rxd4 49. Rxa2 Rd3 50. e6 1-0

[Event "RUS-ch Men Rapid 2019"]
[Site "Sochi"]
[Date "2019.10.15"]
[Round "3.6"]
[White "Lysyj, Igor"]
[Black "Kabanov, Nikolai"]
[Result "1-0"]
[ECO "E06"]
[WhiteElo "2588"]
[BlackElo "2455"]
[Annotator "ChessBase"]
[PlyCount "131"]
[EventDate "2019.10.15"]
[EventType "swiss"]
[EventCountry "RUS"]
[SourceTitle "playchess.com"]
[Source "ChessBase"]
[SourceQuality "1"]
[TimeControl "900+10"]

1. d4 {[%emt 0:00:00]} d5 {[%emt 0:00:00]} 2. Nf3 {[%emt 0:00:00]} Nf6 {[%emt 0:00:00]} 3. c4 {[%emt 0:00:01]} e6 {[%emt 0:00:00]} 4. g3 {[%emt 0:00:02]} Be7 {[%emt 0:00:00]} 5. Bg2 {[%emt 0:00:15]} O-O {[%emt 0:00:01]} 6. Qb3 {[%emt 0:00:01]} Nc6 {[%emt 0:01:23]} 7. Nbd2 {[%emt 0:00:10]} b6 {[%emt 0:01:27]} 8. cxd5 {[%emt 0:00:10]} exd5 {[%emt 0:00:06]} 9. O-O {[%emt 0:00:10]} Bf5 {[%emt 0:00:45]} 10. a3 {[%emt 0:00:56]} Na5 {[%emt 0:00:32]} 11. Qd1 {[%emt 0:00:18]} c5 {[%emt 0:00:13]} 12. Ne5 {[%emt 0:03:12]} Rc8 {[%emt 0:00:42]} 13. dxc5 {[%emt 0:01:11]} Bxc5 {[%emt 0:00:46]} 14. Ndf3 {[%emt 0:00:24]} Bc2 {[%emt 0:00:17]} 15. Qe1 {[%emt 0:00:51]} Nb3 {[%emt 0:00:06]} 16. Bg5 {[%emt 0:00:08]} Nxa1 {[%emt 0:00:17]} 17. Qxa1 {[%emt 0:00:03]} Be7 {[%emt 0:01:40]} 18. Nd4 {[%emt 0:00:27]} h6 {[%emt 0:00:22]} 19. Bh3 {[%emt 0:02:06]} Rc7 {[%emt 0:04:18]} 20. Bf4 {[%emt 0:00:17]} Ba4 {[%emt 0:00:14]} 21. Ne6 {[%emt 0:05:05]} fxe6 {[%emt 0:00:16]} 22. Bxe6+ {[%emt 0:00:01]} Kh7 {[%emt 0:00:23]} 23. Bf5+ {[%emt 0:00:02]} Kh8 {[%emt 0:01:21]} 24. Ng6+ {[%emt 0:00:09]} Kg8 {[%emt 0:00:01]} 25. Bxc7 {[%emt 0:00:36]} Qxc7 {[%emt 0:00:03]} 26. Be6+ {[%emt 0:00:33]} Rf7 {[%emt 0:00:32]} 27. Rc1 {[%emt 0:00:02]} Qd6 {[%emt 0:00:08]} 28. Rc8+ {[%emt 0:00:14]} Be8 {[%emt 0:00:16]} 29. Bxf7+ {[%emt 0:00:25]} Kxf7 {[%emt 0:00:03]} 30. Qb1 {[%emt 0:00:19]} Ne4 {[%emt 0:01:25]} 31. Nxe7 {[%emt 0:00:06]} Qxe7 {[%emt 0:00:07]} 32. Qd3 {[%emt 0:00:11]} Bd7 {[%emt 0:00:35]} 33. Qxd5+ {[%emt 0:00:23]} Be6 {[%emt 0:01:33]} 34. Qh5+ {[%emt 0:00:02]} g6 {[%emt 0:00:01]} 35. Qf3+ {[%emt 0:00:03]} Nf6 {[%emt 0:00:02]} 36. Rc1 {[%emt 0:01:21]} Bd5 {[%emt 0:00:26]} 37. Qd3 {[%emt 0:00:15]} h5 {[%emt 0:00:26]} 38. f3 {[%emt 0:00:09]} Qe5 {[%emt 0:00:05]} 39. e4 {[%emt 0:00:12]} Be6 {[%emt 0:00:04]} 40. Qc3 {[%emt 0:00:08]} Qg5 {[%emt 0:00:03]} 41. Qc7+ {[%emt 0:00:09]} Nd7 {[%emt 0:00:02]} 42. Qf4+ {[%emt 0:00:07]} Qxf4 {[%emt 0:00:02]} 43. gxf4 {[%emt 0:00:01]} Nc5 {[%emt 0:00:21]} 44. b4 {[%emt 0:00:08]} Nd3 {[%emt 0:00:02]} 45. Rc7+ {[%emt 0:00:02]} Kf6 {[%emt 0:00:01]} 46. Rxa7 {[%emt 0:00:02]} Nxf4 {[%emt 0:00:03]} 47. Rb7 {[%emt 0:00:11]} Ke5 {[%emt 0:00:25]} 48. Rxb6 {[%emt 0:00:04]} Kd4 {[%emt 0:00:01]} 49. Kf2 {[%emt 0:00:09]} g5 {[%emt 0:00:05]} 50. Rd6+ {[%emt 0:00:09]} Ke5 {[%emt 0:00:05]} 51. Rd8 {[%emt 0:00:03]} Bc4 {[%emt 0:00:26]} 52. Ke3 {[%emt 0:00:14]} Ng2+ {[%emt 0:00:02]} 53. Kf2 {[%emt 0:00:01]} Nf4 {[%emt 0:00:02]} 54. Rd7 {[%emt 0:00:45]} Bb5 {[%emt 0:00:11]} 55. Rb7 {[%emt 0:00:12]} Ba6 {[%emt 0:00:17]} 56. Ra7 {[%emt 0:00:14]} Bc4 {[%emt 0:00:03]} 57. Rc7 {[%emt 0:00:14]} Kd4 {[%emt 0:00:09]} 58. Rd7+ {[%emt 0:00:13]} Kc3 {[%emt 0:00:13]} 59. Rg7 {[%emt 0:00:24]} Ne6 {[%emt 0:00:12]} 60. Rh7 {[%emt 0:00:07]} h4 {[%emt 0:00:00]} 61. Ke3 {[%emt 0:00:12]} Kb3 {[%emt 0:00:01]} 62. Ra7 {[%emt 0:00:04]} Nf4 {[%emt 0:00:34]} 63. Ra5 {[%emt 0:00:01]} Ng2+ {[%emt 0:00:44]} 64. Kf2 {[%emt 0:00:02]} Nf4 {[%emt 0:00:01]} 65. Ke3 {[%emt 0:00:03]} Ng2+ {[%emt 0:00:01]} 66. Kd2 {[%emt 0:00:10]} 1-0

[Event "RUS-ch Men Rapid 2019"]
[Site "Sochi"]
[Date "2019.10.15"]
[Round "3.7"]
[White "Oganian, Miran"]
[Black "Nozdrachev, Vladislav"]
[Result "1-0"]
[ECO "E06"]
[WhiteElo "2436"]
[BlackElo "2560"]
[Annotator "ChessBase"]
[PlyCount "107"]
[EventDate "2019.10.15"]
[EventType "swiss"]
[EventCountry "RUS"]
[SourceTitle "playchess.com"]
[Source "ChessBase"]
[SourceQuality "1"]
[TimeControl "900+10"]

1. d4 {[%emt 0:00:04]} Nf6 {[%emt 0:00:00]} 2. c4 {[%emt 0:00:03]} e6 {[%emt 0:00:00]} 3. g3 {[%emt 0:00:02]} d5 {[%emt 0:00:01]} 4. Nf3 {[%emt 0:00:02]} Be7 {[%emt 0:00:03]} 5. Bg2 {[%emt 0:00:03]} O-O {[%emt 0:00:02]} 6. O-O {[%emt 0:00:05]} dxc4 {[%emt 0:00:03]} 7. Ne5 {[%emt 0:01:04]} Nc6 {[%emt 0:00:04]} 8. Bxc6 {[%emt 0:00:56]} bxc6 {[%emt 0:00:02]} 9. Nxc6 {[%emt 0:00:03]} Qe8 {[%emt 0:00:01]} 10. Nxe7+ {[%emt 0:00:03]} Qxe7 {[%emt 0:00:01]} 11. Qc2 {[%emt 0:00:05]} c5 {[%emt 0:00:19]} 12. Qxc4 {[%emt 0:01:03]} cxd4 {[%emt 0:00:02]} 13. Qxd4 {[%emt 0:00:04]} e5 {[%emt 0:00:58]} 14. Qh4 {[%emt 0:01:10]} Qe6 {[%emt 0:00:08]} 15. Nc3 {[%emt 0:00:25]} Bb7 {[%emt 0:00:11]} 16. Rd1 {[%emt 0:02:26]} Rac8 {[%emt 0:00:59]} 17. Qb4 {[%emt 0:01:49]} Ba8 {[%emt 0:00:09]} 18. Bg5 {[%emt 0:01:53]} Rc4 {[%emt 0:00:20]} 19. Qd6 {[%emt 0:00:10]} Qh3 {[%emt 0:00:39]} 20. f3 {[%emt 0:00:10]} Rc6 {[%emt 0:00:41]} 21. Qb4 {[%emt 0:01:55]} e4 {[%emt 0:01:57]} 22. Nxe4 {[%emt 0:00:15]} Rb6 {[%emt 0:02:23]} 23. Qc5 {[%emt 0:01:58]} Bxe4 {[%emt 0:00:32]} 24. Bxf6 {[%emt 0:00:35]} gxf6 {[%emt 0:00:14]} 25. fxe4 {[%emt 0:00:06]} Rxb2 {[%emt 0:00:01]} 26. Qe3 {[%emt 0:00:50]} Re8 {[%emt 0:00:02]} 27. Rd6 {[%emt 0:01:16]} Qg4 {[%emt 0:01:51]} 28. Rxf6 {[%emt 0:00:27]} Qxe4 {[%emt 0:01:19]} 29. Qg5+ {[%emt 0:00:08]} Kh8 {[%emt 0:00:01]} 30. Rxf7 {[%emt 0:00:29]} Qd4+ {[%emt 0:00:04]} 31. e3 {[%emt 0:00:12]} Qxe3+ {[%emt 0:01:53]} 32. Qxe3 {[%emt 0:00:01]} Rxe3 {[%emt 0:00:01]} 33. Rd1 {[%emt 0:00:14]} Re8 {[%emt 0:00:21]} 34. Rxa7 {[%emt 0:00:04]} Kg8 {[%emt 0:00:19]} 35. a3 {[%emt 0:00:24]} h5 {[%emt 0:00:10]} 36. Ra5 {[%emt 0:00:10]} h4 {[%emt 0:00:33]} 37. Rg5+ {[%emt 0:00:01]} Kf7 {[%emt 0:00:01]} 38. Rf1+ {[%emt 0:00:09]} Ke6 {[%emt 0:00:03]} 39. Re1+ {[%emt 0:00:23]} Kf6 {[%emt 0:00:04]} 40. Rxe8 {[%emt 0:00:03]} Kxg5 {[%emt 0:00:02]} 41. Rg8+ {[%emt 0:00:05]} Kf5 {[%emt 0:00:09]} 42. gxh4 {[%emt 0:00:14]} Kf4 {[%emt 0:00:28]} 43. Rg3 {[%emt 0:00:03]} Rc2 {[%emt 0:00:12]} 44. h5 {[%emt 0:00:15]} Rc5 {[%emt 0:00:02]} 45. h6 {[%emt 0:00:05]} Rh5 {[%emt 0:00:41]} 46. Rg6 {[%emt 0:00:01]} Kf3 {[%emt 0:00:38]} 47. Rf6+ {[%emt 0:00:02]} Kg4 {[%emt 0:00:01]} 48. Kg2 {[%emt 0:00:21]} Rb5 {[%emt 0:00:10]} 49. h7 Rb2+ {[%emt 0:00:03]} 50. Rf2 {[%emt 0:00:23]} Rb8 {[%emt 0:00:01]} 51. a4 {[%emt 0:00:15]} Ra8 {[%emt 0:00:17]} 52. a5 {[%emt 0:00:06]} Kh5 {[%emt 0:00:05]} 53. Rf3 {[%emt 0:00:26]} Kg6 {[%emt 0:00:04]} 54. Rh3 {[%emt 0:00:03]} 1-0

[Event "RUS-ch Men Rapid 2019"]
[Site "Sochi"]
[Date "2019.10.15"]
[Round "3.16"]
[White "Belyakov, Bogdan"]
[Black "Gubsky, Egor"]
[Result "1-0"]
[ECO "B22"]
[WhiteElo "2506"]
[BlackElo "2339"]
[Annotator "ChessBase"]
[PlyCount "65"]
[EventDate "2019.10.15"]
[EventType "swiss"]
[EventCountry "RUS"]
[SourceTitle "playchess.com"]
[Source "ChessBase"]
[SourceQuality "1"]
[TimeControl "900+10"]

1. e4 c5 2. c3 d5 3. exd5 Qxd5 4. Nf3 Nc6 5. d4 Bg4 6. Be2 cxd4 7. cxd4 e6 8. O-O Nf6 9. h3 Bh5 10. Nc3 Qa5 11. a3 Bd6 12. Nb5 Qd8 13. Bg5 Be7 14. Bxf6 Bxf6 15. d5 exd5 16. Qxd5 Qxd5 17. Nc7+ Kf8 18. Nxd5 Bxb2 19. Rab1 Bxa3 20. Rxb7 Nd8 21. Rd7 f6 22. Nc7 Be8 23. Rd3 Rc8 24. Nxe8 Be7 25. Nd6 Rc2 26. Bd1 Rc5 27. Re1 Nc6 28. Nb7 Rb5 29. Ba4 Rxb7 30. Bxc6 Rc7 31. Nd4 Kf7 32. Bd5+ Ke8 33. Ne6 1-0

[Event "RUS-ch Men Rapid 2019"]
[Site "Sochi"]
[Date "2019.10.15"]
[Round "3.17"]
[White "Shcherbin, Matvei"]
[Black "Goryachkina, Aleksandra"]
[Result "0-1"]
[ECO "B10"]
[WhiteElo "2366"]
[BlackElo "2504"]
[Annotator "ChessBase"]
[PlyCount "60"]
[EventDate "2019.10.15"]
[EventType "swiss"]
[EventCountry "RUS"]
[SourceTitle "playchess.com"]
[Source "ChessBase"]
[SourceQuality "1"]
[TimeControl "900+10"]

1. e4 c6 2. c4 {[%emt 0:00:27]} d5 {[%emt 0:00:00]} 3. exd5 {[%emt 0:00:01]} cxd5 {[%emt 0:00:00]} 4. cxd5 {[%emt 0:00:01]} Nf6 {[%emt 0:00:00]} 5. Qa4+ {[%emt 0:00:01]} Nbd7 {[%emt 0:00:03]} 6. Nc3 {[%emt 0:00:02]} g6 {[%emt 0:00:04]} 7. Bc4 {[%emt 0:00:12]} Bg7 {[%emt 0:00:04]} 8. d3 {[%emt 0:00:07]} O-O {[%emt 0:00:18]} 9. Nf3 {[%emt 0:00:07]} a6 {[%emt 0:00:13]} 10. Qa3 {[%emt 0:00:02]} b6 {[%emt 0:04:08]} 11. O-O {[%emt 0:00:05]} Bb7 {[%emt 0:00:01]} 12. Re1 {[%emt 0:00:04]} b5 {[%emt 0:00:23]} 13. Bb3 {[%emt 0:00:08]} Re8 {[%emt 0:01:40]} 14. Qb4 {[%emt 0:00:26]} Nb6 {[%emt 0:00:48]} 15. Qh4 {[%emt 0:00:09]} Nbxd5 {[%emt 0:00:29]} 16. Ne5 {[%emt 0:00:05]} Rf8 {[%emt 0:01:19]} 17. Bg5 {[%emt 0:01:04]} Nxc3 {[%emt 0:00:48]} 18. bxc3 Rc8 {[%emt 0:00:07]} 19. Re3 {[%emt 0:02:40]} Rxc3 {[%emt 0:02:10]} 20. Rh3 {[%emt 0:00:14]} Nh5 {[%emt 0:00:54]} 21. Bxe7 {[%emt 0:11:22]} Qc7 {[%emt 0:00:27]} 22. Qg5 {[%emt 0:01:02]} Qxe5 {[%emt 0:00:49]} 23. Qxe5 {[%emt 0:00:09]} Bxe5 {[%emt 0:00:01]} 24. Bxf8 {[%emt 0:00:02]} Kxf8 {[%emt 0:00:21]} 25. Re1 {[%emt 0:00:12]} Bd4 {[%emt 0:00:35]} 26. Bd1 {[%emt 0:00:19]} Nf4 {[%emt 0:00:32]} 27. Rxh7 {[%emt 0:00:16]} Nxd3 {[%emt 0:00:50]} 28. Rf1 {[%emt 0:00:07]} Rc1 {[%emt 0:00:23]} 29. Be2 {[%emt 0:00:03]} Bxf2+ {[%emt 0:00:10]} 30. Kh1 {[%emt 0:00:01]} Nf4 {[%emt 0:00:29]} 0-1

[Event "RUS-ch Men Rapid 2019"]
[Site "Sochi"]
[Date "2019.10.15"]
[Round "3.19"]
[White "Potapov, Pavel"]
[Black "Gaydym, Arseniy"]
[Result "1/2-1/2"]
[ECO "B22"]
[WhiteElo "2489"]
[BlackElo "2139"]
[Annotator "ChessBase"]
[PlyCount "133"]
[EventDate "2019.10.15"]
[EventType "swiss"]
[EventCountry "RUS"]
[SourceTitle "playchess.com"]
[Source "ChessBase"]
[SourceQuality "1"]
[TimeControl "900+10"]

1. e4 {[%emt 0:00:00]} c5 {[%emt 0:00:22]} 2. c3 {[%emt 0:00:00]} d5 {[%emt 0:00:05]} 3. exd5 {[%emt 0:00:00]} Qxd5 {[%emt 0:00:01]} 4. d4 {[%emt 0:00:00]} e6 {[%emt 0:00:31]} 5. Nf3 {[%emt 0:00:01]} Nf6 {[%emt 0:00:17]} 6. Bd3 {[%emt 0:00:12]} Nc6 {[%emt 0:00:51]} 7. O-O {[%emt 0:00:15]} Be7 {[%emt 0:01:53]} 8. Be3 {[%emt 0:00:02]} cxd4 {[%emt 0:00:11]} 9. cxd4 {[%emt 0:00:02]} O-O {[%emt 0:00:20]} 10. Nc3 {[%emt 0:00:02]} Qh5 {[%emt 0:00:54]} 11. Be2 {[%emt 0:01:03]} Qa5 {[%emt 0:00:22]} 12. a3 {[%emt 0:00:01]} Bd6 {[%emt 0:01:31]} 13. b4 {[%emt 0:00:30]} Qd8 {[%emt 0:00:02]} 14. Bg5 {[%emt 0:00:15]} Be7 {[%emt 0:00:59]} 15. b5 {[%emt 0:00:10]} Nd5 {[%emt 0:02:11]} 16. Bd2 {[%emt 0:01:00]} Nxc3 {[%emt 0:00:37]} 17. Bxc3 {[%emt 0:00:02]} Nb8 {[%emt 0:00:20]} 18. Ne5 {[%emt 0:01:15]} Nd7 {[%emt 0:00:21]} 19. Qb3 {[%emt 0:00:46]} Nb6 {[%emt 0:00:31]} 20. Bf3 {[%emt 0:00:30]} Nd5 {[%emt 0:00:33]} 21. a4 {[%emt 0:00:37]} Rb8 {[%emt 0:01:18]} 22. Bb2 {[%emt 0:00:16]} Bf6 {[%emt 0:01:18]} 23. Rac1 {[%emt 0:00:06]} Bxe5 {[%emt 0:00:15]} 24. dxe5 {[%emt 0:00:03]} b6 {[%emt 0:00:21]} 25. Ba3 {[%emt 0:00:01]} Re8 {[%emt 0:00:01]} 26. Bd6 {[%emt 0:00:13]} Ra8 {[%emt 0:00:02]} 27. Bxd5 {[%emt 0:00:48]} exd5 {[%emt 0:00:03]} 28. Qxd5 {[%emt 0:00:24]} Be6 {[%emt 0:00:11]} 29. Qb7 {[%emt 0:00:19]} Qh4 {[%emt 0:00:48]} 30. f4 {[%emt 0:00:31]} Qg4 {[%emt 0:00:49]} 31. Rc7 {[%emt 0:01:29]} Qe2 {[%emt 0:00:45]} 32. Qf3 {[%emt 0:01:47]} Qxf3 {[%emt 0:00:02]} 33. Rxf3 {[%emt 0:00:03]} g6 {[%emt 0:00:18]} 34. Rfc3 {[%emt 0:00:16]} Rec8 {[%emt 0:00:32]} 35. Kf2 {[%emt 0:00:37]} h5 {[%emt 0:00:42]} 36. Ke3 {[%emt 0:00:18]} Rxc7 {[%emt 0:00:04]} 37. Rxc7 {[%emt 0:01:53]} Bb3 {[%emt 0:00:03]} 38. Ke4 {[%emt 0:00:36]} Bxa4 {[%emt 0:00:06]} 39. f5 {[%emt 0:00:23]} gxf5+ {[%emt 0:00:13]} 40. Kxf5 {[%emt 0:00:05]} Re8 {[%emt 0:00:11]} 41. Kg5 {[%emt 0:00:58]} Bxb5 {[%emt 0:00:04]} 42. Rxa7 {[%emt 0:00:12]} Bc6 {[%emt 0:00:34]} 43. g3 {[%emt 0:00:25]} Bf3 {[%emt 0:00:18]} 44. Ra3 {[%emt 0:00:09]} Bd1 {[%emt 0:00:17]} 45. Rd3 {[%emt 0:00:20]} Be2 {[%emt 0:00:02]} 46. Rd2 {[%emt 0:00:05]} Bg4 {[%emt 0:00:09]} 47. Rb2 {[%emt 0:00:10]} Kg7 {[%emt 0:00:15]} 48. Rxb6 {[%emt 0:00:07]} Re6 {[%emt 0:00:01]} 49. Rb7 {[%emt 0:00:26]} Rg6+ {[%emt 0:00:04]} 50. Kf4 {[%emt 0:00:02]} Be6 {[%emt 0:00:07]} 51. Rb8 {[%emt 0:00:28]} Rg4+ {[%emt 0:00:05]} 52. Ke3 {[%emt 0:00:04]} Ra4 {[%emt 0:00:13]} 53. Be7 {[%emt 0:00:07]} Bd5 {[%emt 0:00:33]} 54. Bf6+ {[%emt 0:00:05]} Kg6 {[%emt 0:00:07]} 55. Rg8+ {[%emt 0:00:16]} Kh7 {[%emt 0:00:08]} 56. Rd8 {[%emt 0:00:25]} Be6 {[%emt 0:00:05]} 57. h4 {[%emt 0:01:51]} Kg6 {[%emt 0:00:18]} 58. Rh8 {[%emt 0:00:12]} Rb4 {[%emt 0:00:12]} 59. Bg5 {[%emt 0:00:17]} Rb3+ {[%emt 0:00:02]} 60. Kf2 {[%emt 0:00:05]} Rb2+ {[%emt 0:00:04]} 61. Ke1 {[%emt 0:00:10]} Bg4 {[%emt 0:00:11]} 62. Bf4 {[%emt 0:00:54]} Kf5 {[%emt 0:00:11]} 63. Ra8 {[%emt 0:00:16]} Ke4 {[%emt 0:00:13]} 64. Ra3 {[%emt 0:00:04]} Re2+ {[%emt 0:00:08]} 65. Kf1 {[%emt 0:00:01]} Rb2 {[%emt 0:00:02]} 66. Ke1 {[%emt 0:00:31]} Re2+ {[%emt 0:00:07]} 67. Kf1 {[%emt 0:00:06] Kxe5} 1/2-1/2

[Event "RUS-ch Men Rapid 2019"]
[Site "Sochi"]
[Date "2019.10.15"]
[Round "3.20"]
[White "Gabitov, Ruslan"]
[Black "Smagin, Sergey"]
[Result "1/2-1/2"]
[ECO "B01"]
[WhiteElo "2172"]
[BlackElo "2551"]
[Annotator "ChessBase"]
[PlyCount "37"]
[EventDate "2019.10.15"]
[EventType "swiss"]
[EventCountry "RUS"]
[SourceTitle "playchess.com"]
[Source "ChessBase"]
[SourceQuality "1"]
[TimeControl "900+10"]

1. e4 {[%emt 0:00:00]} d5 {[%emt 0:00:02]} 2. Nc3 {[%emt 0:00:00]} d4 {[%emt 0:00:37]} 3. Nce2 {[%emt 0:00:01]} c5 {[%emt 0:00:02]} 4. Ng3 {[%emt 0:00:05]} Nc6 {[%emt 0:00:03]} 5. Bc4 {[%emt 0:00:03]} Nf6 {[%emt 0:00:55]} 6. f4 {[%emt 0:00:17]} e5 {[%emt 0:00:07]} 7. d3 {[%emt 0:00:27]} Bd6 {[%emt 0:00:02]} 8. N1e2 {[%emt 0:01:10]} O-O {[%emt 0:00:45]} 9. a3 {[%emt 0:00:31]} Be6 {[%emt 0:00:32]} 10. Bxe6 {[%emt 0:00:20]} fxe6 {[%emt 0:00:01]} 11. O-O {[%emt 0:00:11]} exf4 {[%emt 0:00:25]} 12. Nxf4 {[%emt 0:00:53]} Qe7 {[%emt 0:01:30]} 13. Bd2 {[%emt 0:01:39]} Rf7 {[%emt 0:00:48]} 14. Qe2 {[%emt 0:00:42]} Ne5 {[%emt 0:00:50]} 15. Nfh5 {[%emt 0:01:55]} Raf8 {[%emt 0:01:07]} 16. Bg5 {[%emt 0:00:46]} Kh8 {[%emt 0:01:33]} 17. Bh4 {[%emt 0:01:16]} Ng6 {[%emt 0:01:28]} 18. Bg5 {[%emt 0:00:52]} Qc7 {[%emt 0:01:15]} 19. Nxg7 {[%emt 0:01:38]} 1/2-1/2